fUSD/lending_fUSD_20260628
["ID","MTS","AMOUNT","RATE_DAILY","PERIOD"]
[426539748,1782569685000,151.0,0.00012611,2]
[426539754,1782569704000,-150.0,0.00013596,2]
[426539755,1782569704000,-2966.21800418,0.00013597,2]
[426539752,1782569704000,-519.82165139,0.00013526,2]
[426539753,1782569704000,-173.31704165,0.00013596,2]
[426539751,1782569704000,-519.82165139,0.00013512,2]
[426539749,1782569704000,-151.0,0.00012611,2]
[426539750,1782569704000,-519.82165139,0.00013497,2]
[426539756,1782569709000,-163.70251835,0.00012954,2]
[426539758,1782569709000,-500.0,0.00013596,2]
[426539757,1782569709000,-500.0,0.00013596,2]
[426539761,1782569710000,-500.0,0.00013596,2]
[426539760,1782569710000,-500.0,0.00013596,2]
[426539762,1782569710000,-256.06907877,0.00013596,2]
[426539763,1782569710000,-2080.22840288,0.00013597,2]
[426539759,1782569710000,-500.0,0.00013596,2]
[426539765,1782569714000,-4850.0,0.00013597,2]
[426539764,1782569714000,-150.0,0.00012954,2]
[426539768,1782569727000,151.0,0.00037512,120]
[426539767,1782569727000,151.0,0.00037512,120]
[426539766,1782569727000,151.0,0.00037512,120]
[426539769,1782569728000,291.827897,0.00037512,120]
[426539771,1782569730000,-500.0,0.00013596,2]
[426539770,1782569730000,-150.0,0.00013596,2]
[426539772,1782569730000,-279.209,0.00013596,2]
[426539774,1782569742000,151.0,0.00037512,120]
[426539773,1782569742000,151.0,0.00037512,120]
[426539775,1782569748000,231.14712,0.00037512,120]
[426539777,1782569769000,151.0,0.00037512,120]
[426539780,1782569770000,155.493128,0.00037512,120]
[426539779,1782569770000,151.0,0.00037512,120]
[426539778,1782569770000,151.0,0.00037512,120]
[426539782,1782569775000,-150.0,0.00013596,2]
[426539781,1782569775000,-151.0,0.00013596,2]
[426539783,1782569775000,-151.0,0.00013596,2]
[426539784,1782569775000,-220.791,0.00013596,2]
[426539785,1782569775000,-500.0,0.00013596,2]
[426539787,1782569775000,-500.0,0.00013596,2]
[426539791,1782569775000,-500.0,0.00013596,2]
[426539789,1782569775000,-500.0,0.00013596,2]
[426539788,1782569775000,-500.0,0.00013596,2]
[426539790,1782569775000,-500.0,0.00013596,2]
[426539793,1782569775000,-327.209,0.00013596,2]
[426539792,1782569775000,-500.0,0.00013596,2]
[426539786,1782569775000,-500.0,0.00013596,2]
[426539797,1782569776000,-500.0,0.00013596,2]
[426539796,1782569776000,-500.0,0.00013596,2]
[426539795,1782569776000,-500.0,0.00013596,2]
[426539794,1782569776000,-172.791,0.00013596,2]
[426539798,1782569776000,-500.0,0.00013596,2]
[426539803,1782569776000,-500.0,0.00013596,2]
[426539800,1782569776000,-500.0,0.00013596,2]
[426539802,1782569776000,-500.0,0.00013596,2]
[426539801,1782569776000,-500.0,0.00013596,2]
[426539804,1782569776000,-327.209,0.00013596,2]
[426539799,1782569776000,-500.0,0.00013596,2]
[426539805,1782569777000,-172.791,0.00013596,2]
[426539807,1782569777000,-500.0,0.00013596,2]
[426539806,1782569777000,-500.0,0.00013596,2]
[426539808,1782569777000,-500.0,0.00013596,2]
[426539809,1782569777000,-500.0,0.00013596,2]
[426539810,1782569777000,-500.0,0.00013596,2]
[426539812,1782569777000,-500.0,0.00013596,2]
[426539813,1782569777000,-500.0,0.00013596,2]
[426539815,1782569777000,-327.209,0.00013596,2]
[426539814,1782569777000,-500.0,0.00013596,2]
[426539811,1782569777000,-500.0,0.00013596,2]
[426539819,1782569778000,-500.0,0.00013596,2]
[426539816,1782569778000,-46.81314272,0.00013596,2]
[426539817,1782569778000,-500.0,0.00013596,2]
[426539818,1782569778000,-500.0,0.00013596,2]
[426539820,1782569778000,-500.0,0.00013596,2]
[426539821,1782569778000,-191.41053264,0.00013596,2]
[426539822,1782569778000,-500.0,0.00013596,2]
[426539823,1782569778000,-500.0,0.00013596,2]
[426539824,1782569778000,-500.0,0.00013596,2]
[426539825,1782569778000,-500.0,0.00013596,2]
[426539826,1782569778000,-500.0,0.00013596,2]
[426539827,1782569778000,-261.77632464,0.00013596,2]
[426539828,1782569779000,-238.22367536,0.00013596,2]
[426539829,1782569779000,-500.0,0.00013596,2]
[426539830,1782569779000,-500.0,0.00013596,2]
[426539832,1782569779000,-500.0,0.00013596,2]
[426539833,1782569779000,-500.0,0.00013596,2]
[426539831,1782569779000,-500.0,0.00013596,2]
[426539834,1782569779000,-500.0,0.00013596,2]
[426539837,1782569779000,-500.0,0.00013596,2]
[426539835,1782569779000,-500.0,0.00013596,2]
[426539836,1782569779000,-500.0,0.00013596,2]
[426539838,1782569779000,-261.77632464,0.00013596,2]
[426539840,1782569780000,-500.0,0.00013596,2]
[426539843,1782569780000,-500.0,0.00013596,2]
[426539842,1782569780000,-500.0,0.00013596,2]
[426539841,1782569780000,-500.0,0.00013596,2]
[426539839,1782569780000,-238.22367536,0.00013596,2]
[426539846,1782569780000,-500.0,0.00013596,2]
[426539849,1782569780000,-311.77632464,0.00013597,2]
[426539848,1782569780000,-450.0,0.00013596,2]
[426539844,1782569780000,-500.0,0.00013596,2]
[426539847,1782569780000,-500.0,0.00013596,2]
[426539845,1782569780000,-500.0,0.00013596,2]
[426539850,1782569781000,-5000.0,0.00013597,2]
[426539851,1782569782000,-5000.0,0.00013597,2]
[426539853,1782569829000,-2000.0,0.00013497,2]
[426539854,1782569829000,-2500.0,0.00013497,2]
[426539855,1782569829000,-177.15677267,0.00013497,2]
[426539858,1782569829000,-20.84322733,0.00013596,2]
[426539857,1782569829000,-151.0,0.00013497,2]
[426539856,1782569829000,-151.0,0.00013497,2]
[426539863,1782569835000,-640.38361212,0.00013596,2]
[426539861,1782569835000,-500.0,0.00013596,2]
[426539862,1782569835000,-500.0,0.00013596,2]
[426539859,1782569835000,-479.15677267,0.00013596,2]
[426539860,1782569835000,-500.0,0.00013596,2]
[426539864,1782569835000,-2380.45961521,0.00013597,2]
[426539871,1782569897000,-4348.02,0.00013497,2]
[426539870,1782569897000,-166.66,0.00013446,2]
[426539868,1782569897000,-152.0,0.0001297,2]
[426539869,1782569897000,-166.66,0.00013174,2]
[426539867,1782569897000,-166.66,0.00012903,2]
[426539872,1782569905000,-152.0,0.00012919,2]
[426539874,1782569906000,-4697.0,0.00013497,2]
[426539873,1782569906000,-151.0,0.00012919,2]
[426539875,1782569913000,-5000.0,0.00013497,2]
[426539876,1782569914000,-5000.0,0.00013497,2]
[426539879,1782569924000,-420.2746,0.00013497,2]
[426539878,1782569924000,-1579.7254,0.00013497,2]
[426539877,1782569924000,-3420.2746,0.00013497,2]
[426539881,1782569925000,-153.0,0.00013497,2]
[426539880,1782569925000,-697.0345,0.00013497,2]
[426539883,1782569925000,-150.0,0.00013596,2]
[426539884,1782569925000,-151.0,0.00013596,2]
[426539882,1782569925000,-151.0,0.00013497,2]
[426539886,1782569925000,-273.76479182,0.00013596,2]
[426539887,1782569925000,-150.0,0.00013596,2]
[426539889,1782569925000,-151.0,0.00013596,2]
[426539888,1782569925000,-150.0,0.00013596,2]
[426539890,1782569925000,-2284.74434048,0.00013597,2]
[426539885,1782569925000,-268.1817677,0.00013596,2]
[426539891,1782569926000,-5000.0,0.00013597,2]
[426539892,1782569927000,-5000.0,0.00013597,2]
[426539894,1782570004000,-1160.1367,0.00013497,2]
[426539896,1782570190000,-1145.0,0.00013069,2]
[426539897,1782570190000,-152.0,0.0001307,2]
[426539898,1782570190000,-151.0,0.0001307,2]
[426539902,1782570190000,-161.4,0.00013119,2]
[426539899,1782570190000,-153.0,0.0001307,2]
[426539901,1782570190000,-152.0,0.0001307,2]
[426539904,1782570190000,-150.0,0.00013166,2]
[426539900,1782570190000,-150.0,0.0001307,2]
[426539903,1782570190000,-525.33,0.00013166,2]
[426539907,1782570190000,-240.48376029,0.00013496,2]
[426539906,1782570190000,-500.0,0.00013496,2]
[426539909,1782570190000,-164.50656074,0.00013496,2]
[426539908,1782570190000,-500.0,0.00013496,2]
[426539911,1782570190000,-369.2839131,0.00013496,2]
[426539910,1782570190000,-298.26852848,0.00013496,2]
[426539905,1782570190000,-187.72723739,0.00013496,2]
[426539913,1782570200000,-130.7160869,0.00013496,2]
[426539912,1782570200000,-151.0,0.0001307,2]
[426539915,1782570200000,-500.0,0.00013496,2]
[426539914,1782570200000,-500.0,0.00013496,2]
[426539919,1782570200000,-500.0,0.00013496,2]
[426539918,1782570200000,-500.0,0.00013496,2]
[426539917,1782570200000,-500.0,0.00013496,2]
[426539916,1782570200000,-500.0,0.00013496,2]
[426539923,1782570201000,-218.2839131,0.00013496,2]
[426539922,1782570201000,-500.0,0.00013496,2]
[426539920,1782570201000,-500.0,0.00013496,2]
[426539921,1782570201000,-500.0,0.00013496,2]
[426539928,1782570202000,-500.0,0.00013496,2]
[426539924,1782570202000,-167.18277522,0.00013496,2]
[426539925,1782570202000,-500.0,0.00013496,2]
[426539926,1782570202000,-500.0,0.00013496,2]
[426539927,1782570202000,-500.0,0.00013496,2]
[426539930,1782570202000,-500.0,0.00013496,2]
[426539929,1782570202000,-500.0,0.00013496,2]
[426539931,1782570202000,-500.0,0.00013496,2]
[426539932,1782570202000,-500.0,0.00013496,2]
[426539934,1782570202000,-332.81722478,0.00013496,2]
[426539933,1782570202000,-500.0,0.00013496,2]
[426539935,1782570203000,-167.18277522,0.00013496,2]
[426539936,1782570203000,-500.0,0.00013496,2]
[426539937,1782570203000,-500.0,0.00013496,2]
[426539939,1782570203000,-500.0,0.00013496,2]
[426539938,1782570203000,-500.0,0.00013496,2]
[426539940,1782570203000,-500.0,0.00013496,2]
[426539941,1782570203000,-500.0,0.00013496,2]
[426539943,1782570203000,-500.0,0.00013496,2]
[426539944,1782570203000,-832.81722478,0.00013497,2]
[426539942,1782570203000,-500.0,0.00013496,2]
[426539947,1782570204000,-622.28392478,0.00013497,2]
[426539946,1782570204000,-507.04607522,0.00013497,2]
[426539945,1782570204000,-3870.67,0.00013181,2]
[426539949,1782570205000,-3622.28392478,0.00013497,2]
[426539948,1782570205000,-1377.71607522,0.00013497,2]
[426539950,1782570266000,-537.323,0.00013227,2]
[426539961,1782570383000,-151.0,0.00012002,2]
[426539960,1782570383000,-151.0,0.00012002,2]
[426539965,1782570383000,-150.0,0.0001223,2]
[426539959,1782570383000,-151.0,0.00012002,2]
[426539962,1782570383000,-151.0,0.00012002,2]
[426539966,1782570383000,-214.51,0.00012785,2]
[426539964,1782570383000,-150.0,0.0001223,2]
[426539963,1782570383000,-150.0,0.0001223,2]
[426539967,1782570449000,176.44,0.00037449,120]
[426539978,1782570464000,505.2,0.00037449,120]
[426539977,1782570464000,505.2,0.00037449,120]
[426539976,1782570464000,505.2,0.00037449,120]
[426539982,1782570465000,505.2,0.00037449,120]
[426539981,1782570465000,505.2,0.00037449,120]
[426539980,1782570465000,505.2,0.00037449,120]
[426539983,1782570466000,505.2,0.00037449,120]
[426539984,1782570466000,505.2,0.00037449,120]
[426539986,1782570466000,505.2,0.00037449,120]
[426539987,1782570466000,505.2,0.00037449,120]
[426539990,1782570467000,505.2,0.00037449,120]
[426539989,1782570467000,505.2,0.00037449,120]
[426539991,1782570467000,505.2,0.00037449,120]
[426539992,1782570468000,505.2,0.00037449,120]
[426539998,1782570469000,505.2,0.00037449,120]
[426539997,1782570469000,505.2,0.00037449,120]
[426539995,1782570469000,505.2,0.00037449,120]
[426539994,1782570469000,505.2,0.00037449,120]
[426540001,1782570470000,505.2,0.00037449,120]
[426540000,1782570470000,505.2,0.00037449,120]
[426539999,1782570470000,505.2,0.00037449,120]
[426540002,1782570471000,505.2,0.00037449,120]
[426540004,1782570471000,505.39913609,0.00037449,120]
[426540003,1782570471000,505.2,0.00037449,120]
[426540006,1782570508000,508.19,0.00037449,120]
[426540007,1782570509000,404.05,0.00037449,120]
[426540008,1782570537000,-1492.5886,0.00012583,2]
[426540035,1782570631000,-151.0,0.00013227,2]
[426540028,1782570631000,-150.0,0.00013104,2]
[426540033,1782570631000,-2379.251,0.00013227,2]
[426540029,1782570631000,-30.51280073,0.00013105,2]
[426540032,1782570631000,-250.0,0.00013203,2]
[426540031,1782570631000,-500.0,0.00013203,2]
[426540030,1782570631000,-471.90719927,0.00013105,2]
[426540034,1782570631000,-279.043,0.00013227,2]
[426540025,1782570631000,-150.0,0.0001291,2]
[426540027,1782570631000,-150.0,0.00013104,2]
[426540026,1782570631000,-728.4,0.00013042,2]
[426540019,1782570631000,-281.49602122,0.00012583,2]
[426540021,1782570631000,-239.10994737,0.0001263,2]
[426540023,1782570631000,-287.91,0.00012785,2]
[426540024,1782570631000,-150.0,0.0001291,2]
[426540022,1782570631000,-165.72,0.00012657,2]
[426540017,1782570631000,-691.33581743,0.00012583,2]
[426540018,1782570631000,-296.62123068,0.00012583,2]
[426540016,1782570631000,-278.16424389,0.00012583,2]
[426540015,1782570631000,-3714.300108,0.00012583,2]
[426540014,1782570631000,-365.7,0.00012477,2]
[426540040,1782570631000,-151.0,0.00013227,2]
[426540020,1782570631000,-328.03,0.00012603,2]
[426540046,1782570631000,-558.78796994,0.00013396,2]
[426540062,1782570631000,-500.0,0.00013396,2]
[426540045,1782570631000,-500.0,0.00013396,2]
[426540047,1782570631000,-500.0,0.00013396,2]
[426540061,1782570631000,-500.0,0.00013396,2]
[426540057,1782570631000,-500.0,0.00013396,2]
[426540058,1782570631000,-500.0,0.00013396,2]
[426540056,1782570631000,-500.0,0.00013396,2]
[426540054,1782570631000,-500.0,0.00013396,2]
[426540052,1782570631000,-215.15459252,0.00013396,2]
[426540053,1782570631000,-500.0,0.00013396,2]
[426540050,1782570631000,-168.3386322,0.00013396,2]
[426540051,1782570631000,-500.0,0.00013396,2]
[426540060,1782570631000,-500.0,0.00013396,2]
[426540055,1782570631000,-500.0,0.00013396,2]
[426540059,1782570631000,-500.0,0.00013396,2]
[426540048,1782570631000,-500.0,0.00013396,2]
[426540044,1782570631000,-280.69973776,0.00013396,2]
[426540043,1782570631000,-150.0,0.00013395,2]
[426540042,1782570631000,-3035.7062378,0.00013328,2]
[426540037,1782570631000,-151.0,0.00013227,2]
[426540038,1782570631000,-151.0,0.00013227,2]
[426540041,1782570631000,-2500.0,0.00013313,2]
[426540039,1782570631000,-150.0,0.00013227,2]
[426540049,1782570631000,-500.0,0.00013396,2]
[426540036,1782570631000,-151.0,0.00013227,2]
[426540079,1782570632000,-500.0,0.00013396,2]
[426540089,1782570632000,-500.0,0.00013396,2]
[426540080,1782570632000,-500.0,0.00013396,2]
[426540082,1782570632000,-500.0,0.00013396,2]
[426540083,1782570632000,-500.0,0.00013396,2]
[426540086,1782570632000,-500.0,0.00013396,2]
[426540097,1782570632000,-500.0,0.00013396,2]
[426540091,1782570632000,-500.0,0.00013396,2]
[426540096,1782570632000,-500.0,0.00013396,2]
[426540088,1782570632000,-500.0,0.00013396,2]
[426540092,1782570632000,-500.0,0.00013396,2]
[426540087,1782570632000,-500.0,0.00013396,2]
[426540090,1782570632000,-500.0,0.00013396,2]
[426540081,1782570632000,-500.0,0.00013396,2]
[426540095,1782570632000,-500.0,0.00013396,2]
[426540084,1782570632000,-500.0,0.00013396,2]
[426540066,1782570632000,-500.0,0.00013396,2]
[426540076,1782570632000,-500.0,0.00013396,2]
[426540064,1782570632000,-500.0,0.00013396,2]
[426540072,1782570632000,-264.46902287,0.00013396,2]
[426540065,1782570632000,-500.0,0.00013396,2]
[426540063,1782570632000,-500.0,0.00013396,2]
[426540094,1782570632000,-500.0,0.00013396,2]
[426540068,1782570632000,-205.9432965,0.00013396,2]
[426540074,1782570632000,-500.0,0.00013396,2]
[426540073,1782570632000,-235.53097713,0.00013396,2]
[426540067,1782570632000,-500.0,0.00013396,2]
[426540069,1782570632000,-500.0,0.00013396,2]
[426540071,1782570632000,-500.0,0.00013396,2]
[426540085,1782570632000,-500.0,0.00013396,2]
[426540075,1782570632000,-500.0,0.00013396,2]
[426540078,1782570632000,-500.0,0.00013396,2]
[426540070,1782570632000,-500.0,0.00013396,2]
[426540093,1782570632000,-500.0,0.00013396,2]
[426540077,1782570632000,-500.0,0.00013396,2]
[426540098,1782570632000,-500.0,0.00013396,2]
[426540118,1782570632000,-300.0,0.00013396,2]
[426540119,1782570632000,-500.0,0.00013396,2]
[426540120,1782570632000,-500.0,0.00013396,2]
[426540122,1782570632000,-500.0,0.00013396,2]
[426540124,1782570632000,-500.0,0.00013396,2]
[426540125,1782570632000,-500.0,0.00013396,2]
[426540126,1782570632000,-500.0,0.00013396,2]
[426540123,1782570632000,-500.0,0.00013396,2]
[426540129,1782570632000,-214.54855471,0.00013397,2]
[426540127,1782570632000,-500.0,0.00013396,2]
[426540132,1782570632000,-344.69894631,0.00013397,2]
[426540128,1782570632000,-500.0,0.00013396,2]
[426540131,1782570632000,-50100.81621749,0.00013397,2]
[426540099,1782570632000,-500.0,0.00013396,2]
[426540133,1782570632000,-407.62725079,0.00013397,2]
[426540117,1782570632000,-500.0,0.00013396,2]
[426540112,1782570632000,-500.0,0.00013396,2]
[426540130,1782570632000,-1785.45144529,0.00013397,2]
[426540111,1782570632000,-500.0,0.00013396,2]
[426540101,1782570632000,-500.0,0.00013396,2]
[426540102,1782570632000,-500.0,0.00013396,2]
[426540100,1782570632000,-500.0,0.00013396,2]
[426540103,1782570632000,-500.0,0.00013396,2]
[426540104,1782570632000,-500.0,0.00013396,2]
[426540107,1782570632000,-500.0,0.00013396,2]
[426540108,1782570632000,-500.0,0.00013396,2]
[426540106,1782570632000,-500.0,0.00013396,2]
[426540109,1782570632000,-500.0,0.00013396,2]
[426540110,1782570632000,-500.0,0.00013396,2]
[426540116,1782570632000,-500.0,0.00013396,2]
[426540121,1782570632000,-500.0,0.00013396,2]
[426540113,1782570632000,-500.0,0.00013396,2]
[426540114,1782570632000,-290.63922305,0.00013396,2]
[426540115,1782570632000,-209.36077695,0.00013396,2]
[426540105,1782570632000,-500.0,0.00013396,2]
[426540162,1782570637000,-2500.0,0.00013313,2]
[426540163,1782570637000,-56495.00000001,0.00013397,2]
[426540165,1782570637000,-590.63,0.00013397,2]
[426540167,1782570637000,-773.99999997,0.00013397,2]
[426540166,1782570637000,-944.30311392,0.00013397,2]
[426540168,1782570637000,-639.9142679,0.00013397,2]
[426540164,1782570637000,-4902.20348945,0.00013397,2]
[426540220,1782570638000,-574.20583563,0.0001367,2]
[426540196,1782570638000,-151.0,0.00013597,2]
[426540214,1782570638000,-151.0,0.00013597,2]
[426540194,1782570638000,-153.0,0.00013597,2]
[426540199,1782570638000,-151.0,0.00013597,2]
[426540212,1782570638000,-152.0,0.00013597,2]
[426540195,1782570638000,-152.0,0.00013597,2]
[426540208,1782570638000,-151.0,0.00013597,2]
[426540218,1782570638000,-189.05,0.00013613,2]
[426540216,1782570638000,-200.0,0.00013597,2]
[426540222,1782570638000,-490.74551356,0.00013679,2]
[426540243,1782570638000,-150.99,0.00013699,2]
[426540229,1782570638000,-1635.62,0.00013699,2]
[426540231,1782570638000,-7239.55,0.00013699,2]
[426540226,1782570638000,-161.37,0.00013682,2]
[426540228,1782570638000,-73564.77,0.00013699,2]
[426540224,1782570638000,-1295.08517464,0.00013679,2]
[426540235,1782570638000,-999.99,0.00013699,2]
[426540237,1782570638000,-16383.64,0.00013699,2]
[426540239,1782570638000,-9999.99,0.00013699,2]
[426540241,1782570638000,-9999.99,0.00013699,2]
[426540255,1782570638000,-9999.99,0.00013699,2]
[426540245,1782570638000,-9818.05,0.00013699,2]
[426540210,1782570638000,-181.52982041,0.00013597,2]
[426540233,1782570638000,-2139.55,0.00013699,2]
[426540205,1782570638000,-151.0,0.00013597,2]
[426540172,1782570638000,-648.11171277,0.00013397,2]
[426540201,1782570638000,-150.0,0.00013597,2]
[426540247,1782570638000,-5810.62,0.00013699,2]
[426540169,1782570638000,-11314.31526463,0.00013397,2]
[426540173,1782570638000,-410.48444221,0.00013397,2]
[426540171,1782570638000,-1355938.48013847,0.00013397,2]
[426540175,1782570638000,-7462.0,0.000134,2]
[426540176,1782570638000,-242717.6688012,0.00013413,2]
[426540179,1782570638000,-1442359.58047522,0.00013497,2]
[426540178,1782570638000,-502.42,0.00013425,2]
[426540170,1782570638000,-17548.01131106,0.00013397,2]
[426540174,1782570638000,-250.72019701,0.00013397,2]
[426540180,1782570638000,-151.0,0.00013497,2]
[426540197,1782570638000,-151.0,0.00013597,2]
[426540181,1782570638000,-150.0,0.00013497,2]
[426540188,1782570638000,-150.0,0.00013497,2]
[426540186,1782570638000,-152.0,0.00013497,2]
[426540187,1782570638000,-151.0,0.00013497,2]
[426540191,1782570638000,-648.11171276,0.00013564,2]
[426540183,1782570638000,-150.0,0.00013497,2]
[426540190,1782570638000,-151.0,0.00013497,2]
[426540184,1782570638000,-151.67243453,0.00013497,2]
[426540192,1782570638000,-150.0,0.00013589,2]
[426540185,1782570638000,-151.0,0.00013497,2]
[426540182,1782570638000,-151.0,0.00013497,2]
[426540204,1782570638000,-152.0,0.00013597,2]
[426540189,1782570638000,-151.0,0.00013497,2]
[426540253,1782570638000,-9999.99,0.00013699,2]
[426540193,1782570638000,-150.0,0.00013589,2]
[426540249,1782570638000,-354.47,0.00013699,2]
[426540288,1782570638000,-200.60393643,0.00014045,2]
[426540284,1782570638000,-648.11171276,0.00013898,2]
[426540289,1782570638000,-502.42,0.00014064,2]
[426540294,1782570638000,-3417.75026613,0.00014179,2]
[426540297,1782570638000,-166.66,0.00014261,2]
[426540295,1782570638000,-4624.3296,0.00014179,2]
[426540290,1782570638000,-648.11171276,0.00014065,2]
[426540298,1782570638000,-648.11171276,0.00014399,2]
[426540296,1782570638000,-648.11171276,0.00014232,2]
[426540300,1782570638000,-648.11171276,0.00014566,2]
[426540299,1782570638000,-255.0,0.00014507,2]
[426540286,1782570638000,-200.0,0.00014009,2]
[426540291,1782570638000,-410.48444219,0.00014149,2]
[426540292,1782570638000,-200.0,0.00014149,2]
[426540301,1782570638000,-500.0,0.00014692,2]
[426540303,1782570638000,-500.0,0.00014692,2]
[426540304,1782570638000,-500.0,0.00014692,2]
[426540306,1782570638000,-162.50414315,0.00014702,2]
[426540302,1782570638000,-500.0,0.00014692,2]
[426540305,1782570638000,-227.0,0.00014702,2]
[426540307,1782570638000,-233.0,0.00014702,2]
[426540309,1782570638000,-153.0,0.00014702,2]
[426540308,1782570638000,-154.20718968,0.00014702,2]
[426540310,1782570638000,-343.0,0.00014702,2]
[426540293,1782570638000,-2284.68375942,0.00014179,2]
[426540283,1782570638000,-200.0,0.0001387,2]
[426540251,1782570638000,-299.99,0.00013699,2]
[426540287,1782570638000,-365.7,0.00014037,2]
[426540285,1782570638000,-166.66,0.00013989,2]
[426540258,1782570638000,-9999.99,0.00013699,2]
[426540259,1782570638000,-372.2,0.00013699,2]
[426540257,1782570638000,-1585.57,0.00013699,2]
[426540261,1782570638000,-200.0,0.00013699,2]
[426540262,1782570638000,-166.66,0.00013717,2]
[426540265,1782570638000,-502.42,0.00013744,2]
[426540263,1782570638000,-648.11171276,0.00013731,2]
[426540267,1782570638000,-300.0,0.00013841,2]
[426540270,1782570638000,-400.09937219,0.00013841,2]
[426540264,1782570638000,-200.0,0.00013733,2]
[426540271,1782570638000,-600.0,0.00013841,2]
[426540268,1782570638000,-300.0,0.00013841,2]
[426540266,1782570638000,-300.0,0.00013841,2]
[426540282,1782570638000,-168.85,0.0001385,2]
[426540272,1782570638000,-600.0,0.00013841,2]
[426540280,1782570638000,-200.0,0.00013841,2]
[426540269,1782570638000,-300.0,0.00013841,2]
[426540281,1782570638000,-300.1513056,0.00013841,2]
[426540279,1782570638000,-200.0,0.00013841,2]
[426540278,1782570638000,-267.97465902,0.00013841,2]
[426540275,1782570638000,-600.0,0.00013841,2]
[426540277,1782570638000,-200.0,0.00013841,2]
[426540274,1782570638000,-600.0,0.00013841,2]
[426540273,1782570638000,-600.0,0.00013841,2]
[426540276,1782570638000,-200.0,0.00013841,2]
[426540315,1782570639000,-410.48444219,0.000149,2]
[426540312,1782570639000,-648.11171276,0.00014733,2]
[426540311,1782570639000,-175.0,0.00014702,2]
[426540314,1782570639000,-525.33,0.00014812,2]
[426540313,1782570639000,-151.0,0.00014787,2]
[426540317,1782570639000,-350.0,0.00014942,2]
[426540322,1782570639000,-151.0,0.00014997,2]
[426540316,1782570639000,-648.11171276,0.000149,2]
[426540324,1782570639000,-2580281.88689571,0.00015,2]
[426540320,1782570639000,-1000.0,0.00014985,2]
[426540318,1782570639000,-500.0,0.00014985,2]
[426540321,1782570639000,-151.0,0.00014997,2]
[426540323,1782570639000,-151.0,0.00014997,2]
[426540319,1782570639000,-1000.0,0.00014985,2]
[426540325,1782570640000,-5803.20447189,0.00015,2]
[426540327,1782570640000,-11247.84638916,0.00015,2]
[426540326,1782570640000,-5914.27178074,0.00015,2]
[426540328,1782570640000,-1034.77342318,0.00015,2]
[426540329,1782570640000,-720.24001062,0.00015,2]
[426540345,1782570642000,-968.53788495,0.00015,2]
[426540341,1782570642000,-0.82608788,0.00015,2]
[426540347,1782570642000,-7738.93650204,0.00015,2]
[426540482,1782570645000,-295000.00000001,0.00015,2]
[426540486,1782570645000,-728.832358,0.00015,2]
[426540496,1782570645000,-16078.05853006,0.00015,2]
[426540484,1782570645000,-2342.01767885,0.00015,2]
[426540479,1782570645000,-34919.48362876,0.00015,2]
[426540489,1782570645000,-5032.255,0.00015,2]
[426540491,1782570645000,-1638.387,0.00015,2]
[426540493,1782570645000,-492.25207403,0.00015,2]